fUSD/lending_fUSD_20250226
["ID","MTS","AMOUNT","RATE_DAILY","PERIOD"]
[354621278,1740595970865,-966.9,0.00040547,14]
[354621279,1740595970875,-1141.53,0.00040547,7]
[354621280,1740595970884,-1382.5,0.00040547,14]
[354621281,1740595970895,-811.04,0.00040547,14]
[354621282,1740595970906,-669.94,0.00040547,14]
[354621283,1740595970916,-691.77,0.00040547,14]
[354621284,1740595970925,-530.0,0.00040547,14]
[354621285,1740595970934,-1910.93,0.00040547,14]
[354621286,1740595970943,-500.0,0.00040547,14]
[354621287,1740595970953,-874.49,0.00040547,14]
[354621288,1740595970962,-776.22,0.00040547,14]
[354621289,1740595970974,-2493.41,0.00040547,14]
[354621290,1740595970986,-811.0,0.00040547,14]
[354621291,1740595970995,-2143.28,0.00040547,14]
[354621292,1740595971004,-2617.36,0.00040547,14]
[354621293,1740595971015,-1621.78,0.00040547,14]
[354621294,1740595971028,-2319.53,0.00040547,14]
[354621295,1740595971038,-500.0,0.00040547,14]
[354621296,1740595971048,-500.0,0.00040547,14]
[354621297,1740595971057,-529.04,0.00040547,14]
[354621298,1740595971067,-768.45,0.00040547,14]
[354621299,1740595971077,-500.0,0.00040547,14]
[354621300,1740595971086,-1163.2,0.00040547,14]
[354621301,1740595971096,-500.0,0.00040547,14]
[354621302,1740595971105,-911.1,0.00040547,14]
[354621303,1740595971115,-2143.46,0.00040547,14]
[354621304,1740595971124,-1280.98,0.00040547,14]
[354621305,1740595971134,-500.0,0.00040547,14]
[354621306,1740595971144,-1855.75,0.00040547,14]
[354621307,1740595971157,-873.58,0.00040547,14]
[354621308,1740595971167,-939.46,0.00040547,14]
[354621309,1740595971178,-500.0,0.00040547,14]
[354621310,1740595971187,-1902.32,0.00040547,14]
[354621311,1740595971197,-1142.01,0.00040547,14]
[354621312,1740595971207,-938.37,0.00040547,14]
[354621313,1740595971217,-800.79,0.00040547,14]
[354621314,1740595971227,-512.47,0.00040547,14]
[354621315,1740595971237,-2507.28,0.00040547,2]
[354621316,1740595971246,-1981.71,0.00040547,14]
[354621317,1740595971256,-731.9,0.00040547,14]
[354621318,1740595971265,-1276.51,0.00040547,14]
[354621319,1740595971275,-500.0,0.00040547,14]
[354621320,1740595971285,-708.24,0.00040547,14]
[354621321,1740595971294,-500.0,0.00040547,14]
[354621322,1740595971304,-2733.74,0.00040547,14]
[354621323,1740595971314,-2252.01,0.00040547,14]
[354621324,1740595971323,-891.14,0.00040547,14]
[354621325,1740595971332,-552.36,0.00040547,14]
[354621326,1740595971342,-630.12,0.00040547,14]
[354621327,1740595971356,-265.41946973,0.00040547,14]
[354621328,1740595971366,-642.98,0.00040547,14]
[354621329,1740595971376,-1991.31,0.00040547,14]
[354621330,1740595971386,-1022.27,0.00040547,14]
[354621331,1740595971396,-1294.07,0.00040547,14]
[354621332,1740595971410,-1853.21,0.00040547,14]
[354621333,1740595971419,-630.96,0.00040547,14]
[354621334,1740595971429,-1573.28,0.00040547,14]
[354621335,1740595971439,-2426.57,0.00040547,14]
[354621336,1740595971448,-2490.78,0.00040547,14]
[354621337,1740595971458,-1150.32,0.00040547,14]
[354621338,1740595971467,-715.02,0.00040547,14]
[354621339,1740595971476,-3484.94,0.00040547,14]
[354621340,1740595971486,-622.95598594,0.00040547,14]
[354621341,1740595971495,-2771.33,0.00040547,14]
[354621342,1740595971505,-606.96158494,0.00040547,14]
[354621343,1740595971514,-1596.62,0.00040547,14]
[354621344,1740595971524,-1876.78,0.00040547,14]
[354621345,1740595971534,-1560.4,0.00040547,14]
[354621346,1740595971544,-6192.85,0.00040547,14]
[354621347,1740595971553,-647.32,0.00040547,14]
[354621348,1740595971563,-1726.29,0.00040547,14]
[354621349,1740595971573,-1676.26,0.00040547,14]
[354621350,1740595971584,-2725.95,0.00040547,14]
[354621351,1740595971594,-563.72,0.00040547,14]
[354621352,1740595971603,-944.42,0.00040547,14]
[354621353,1740595971613,-3837.57,0.00040547,14]
[354621354,1740595971622,-1361.35,0.00040547,14]
[354621355,1740595971631,-1302.57,0.00040547,14]
[354621356,1740595971641,-688.53,0.00040547,14]
[354621357,1740595971653,-11693.75,0.00040547,14]
[354621358,1740595971663,-861.86,0.00040547,14]
[354621359,1740595971672,-3063.11,0.00040547,14]
[354621360,1740595971682,-1132.99,0.00040547,14]
[354621361,1740595971691,-2812.52,0.00040547,14]
[354621362,1740595971701,-2332.02,0.00040547,14]
[354621363,1740595971710,-3032.5,0.00040547,14]
[354621364,1740595971719,-1403.52,0.00040547,14]
[354621365,1740595971729,-2514.92,0.00040547,14]
[354621366,1740595971738,-840.17,0.00040547,14]
[354621367,1740595971748,-3285.15,0.00040547,14]
[354621368,1740595971757,-1217.25,0.00040547,14]
[354621369,1740595971766,-2864.92,0.00040547,14]
[354621370,1740595971776,-829.58,0.00040547,14]
[354621371,1740595971785,-521.32,0.00040547,14]
[354621372,1740595971795,-1548.49,0.00040547,14]
[354621373,1740595971804,-1797.4,0.00040547,14]
[354621374,1740595971814,-3783.79,0.00040547,14]
[354621375,1740595971823,-577.91,0.00040547,14]
[354621376,1740595971832,-1141.09,0.00040547,14]
[354621377,1740595971841,-6297.9,0.00040547,14]
[354621378,1740595971851,-2194.13,0.00040547,14]
[354621379,1740595971861,-2625.14,0.00040547,14]
[354621380,1740595971871,-1289.77,0.00040547,14]
[354621381,1740595971881,-564.43,0.00040547,14]
[354621382,1740595971890,-2622.68,0.00040547,14]
[354621383,1740595971900,-3149.85,0.00040547,14]
[354621384,1740595971909,-806.4,0.00040547,14]
[354621385,1740595971918,-2632.85,0.00040547,14]
[354621386,1740595971927,-2112.2,0.00040547,14]
[354621387,1740595971936,-3833.32,0.00040547,14]
[354621388,1740595971946,-1648.8,0.00040547,14]
[354621389,1740595971955,-5487.93,0.00040547,14]
[354621390,1740595971964,-2311.59,0.00040547,14]
[354621391,1740595971975,-974.58,0.00040547,14]
[354621392,1740595971987,-565.43,0.00040547,14]
[354621393,1740595971996,-1343.0,0.00040547,14]
[354621394,1740595972005,-11841.49,0.00040547,14]
[354621395,1740595972015,-567.13,0.00040547,14]
[354621396,1740595972225,-3413.54,0.00040547,14]
[354621397,1740595972234,-1833.27,0.00040547,14]
[354621398,1740595972243,-995.26,0.00040547,14]
[354621399,1740595972253,-3517.26,0.00040547,14]
[354621400,1740595972262,-1238.69,0.00040547,14]
[354621401,1740595972271,-1700.63,0.00040547,14]
[354621402,1740595972280,-2752.94,0.00040547,14]
[354621403,1740595972290,-4507.25,0.00040547,14]
[354621404,1740595972299,-1862.26,0.00040547,14]
[354621405,1740595972308,-7439.57,0.00040547,14]
[354621406,1740595972317,-1154.79,0.00040547,14]
[354621407,1740595972327,-639.34,0.00040547,14]
[354621408,1740595972336,-1572.85,0.00040547,14]
[354621409,1740595972345,-3421.4,0.00040547,14]
[354621410,1740595972355,-1778.87,0.00040547,14]
[354621411,1740595972364,-1616.96,0.00040547,14]
[354621412,1740595972373,-696.16,0.00040547,14]
[354621413,1740595972382,-9182.73,0.00040547,14]
[354621414,1740595972392,-6709.93,0.00040547,14]
[354621415,1740595972403,-683.41,0.00040547,14]
[354621416,1740595972412,-682.72,0.00040547,14]
[354621417,1740595972421,-4316.65,0.00040547,14]
[354621418,1740595972431,-546.58,0.00040547,14]
[354621419,1740595972440,-3317.95,0.00040547,14]
[354621420,1740595972449,-1576.59,0.00040547,14]
[354621421,1740595972458,-604.02,0.00040547,14]
[354621422,1740595972468,-682.23,0.00040547,14]
[354621423,1740595972478,-876.15,0.00040547,14]
[354621424,1740595972488,-1898.38,0.00040547,14]
[354621425,1740595972499,-3418.9,0.00040547,14]
[354621426,1740595972509,-749.16,0.00040547,14]
[354621427,1740595972519,-2938.03,0.00040547,14]
[354621428,1740595972528,-1228.02,0.00040547,14]
[354621429,1740595972538,-2258.95,0.00040547,14]
[354621430,1740595972547,-1052.77,0.00040547,14]
[354621431,1740595972557,-500.0,0.00040547,14]
[354621432,1740595972567,-932.43,0.00040547,14]
[354621433,1740595972576,-1087.18,0.00040547,14]
[354621434,1740595972585,-3770.5,0.00040547,14]
[354621435,1740595972595,-4443.37,0.00040547,14]
[354621436,1740595972605,-4370.98,0.00040547,14]
[354621437,1740595972615,-841.55,0.00040547,14]
[354621438,1740595972624,-1077.8,0.00040547,14]
[354621439,1740595972633,-1662.55,0.00040547,14]
[354621440,1740595972643,-1684.75,0.00040547,14]
[354621441,1740595972655,-732.3,0.00040547,14]
[354621442,1740595972664,-669.42,0.00040547,14]
[354621443,1740595972674,-2153.43,0.00040547,14]
[354621444,1740595972684,-2455.03,0.00040547,14]
[354621445,1740595972694,-500.0,0.00040547,14]
[354621446,1740595972704,-8707.22,0.00040547,14]
[354621447,1740595972715,-555.94,0.00040547,14]
[354621448,1740595972725,-661.77,0.00040547,14]
[354621449,1740595972735,-1962.86,0.00040547,14]
[354621450,1740595972744,-1465.58,0.00040547,14]
[354621451,1740595972754,-14121.36,0.00040547,14]
[354621452,1740595972764,-3029.66,0.00040547,14]
[354621453,1740595972774,-3158.55,0.00040547,14]
[354621454,1740595972783,-677.06,0.00040547,14]
[354621455,1740595972793,-1234.59,0.00040547,14]
[354621456,1740595972802,-1124.82,0.00040547,14]
[354621457,1740595972812,-1087.29,0.00040547,14]
[354621458,1740595972821,-1184.83,0.00040547,14]
[354621459,1740595972830,-766.23,0.00040547,14]
[354621460,1740595972840,-1001.3,0.00040547,14]
[354621461,1740595972849,-617.69,0.00040547,14]
[354621462,1740595972859,-1731.67,0.00040547,14]
[354621463,1740595972868,-3138.97,0.00040547,14]
[354621464,1740595972878,-527.05,0.00040547,14]
[354621465,1740595972887,-1244.63,0.00040547,14]
[354621466,1740595972897,-850.11,0.00040547,14]
[354621467,1740595972910,-2099.68,0.00040547,14]
[354621468,1740595972920,-1394.32,0.00040547,14]
[354621469,1740595972929,-1086.92,0.00040547,14]
[354621470,1740595972939,-1256.63,0.00040547,14]
[354621471,1740595972948,-1776.24,0.00040547,14]
[354621472,1740595972957,-3802.94,0.00040547,14]
[354621473,1740595972966,-772.03,0.00040547,14]
[354621474,1740595972978,-500.0,0.00040547,14]
[354621475,1740595972988,-773.62,0.00040547,14]
[354621476,1740595972998,-666.36,0.00040547,14]
[354621477,1740595973009,-1317.17,0.00040547,14]
[354621478,1740595973019,-519.50677093,0.00040547,14]
[354621479,1740595973029,-1507.85,0.00040547,14]
[354621480,1740595973039,-1264.32,0.00040547,14]
[354621481,1740595973048,-4383.06,0.00040547,14]
[354621482,1740595973058,-2961.3,0.00040547,14]
[354621483,1740595973069,-1388.89,0.00040547,14]
[354621484,1740595973079,-556.93,0.00040547,14]
[354621485,1740595973088,-3155.81,0.00040547,14]
[354621486,1740595973098,-561.98,0.00040547,14]
[354621487,1740595973107,-2270.77,0.00040547,14]
[354621488,1740595973116,-2142.0,0.00040548,14]
[354621489,1740595973125,-1232.0,0.00040548,14]
[354621490,1740595973135,-500.0,0.000406,2]
[354621491,1740595973144,-1315.3938,0.00040616,21]
[354621492,1740595973156,-500.0,0.00040627,120]
[354621493,1740595973165,-2000.0,0.00040627,120]
[354621494,1740595973175,-500.0,0.00040627,120]
[354621495,1740595973185,-500.0,0.00040627,120]
[354621496,1740595973194,-200.0,0.00040627,120]
[354621497,1740595973204,-377.46614524,0.0004063,30]
[354621498,1740595973214,-500.0,0.00040685,2]
[354621499,1740595973223,-212.08673115,0.000407,8]
[354621500,1740595973232,-174.68190841,0.00040721,2]
[354621501,1740595973242,-311.49730632,0.00040721,2]
[354621502,1740595973252,-264.27380582,0.00040721,2]
[354621503,1740595973261,-17799.9819,0.00040721,2]
[354621504,1740595973271,-150.24251612,0.00040762,14]
[354621505,1740595973280,-500.0,0.00040763,2]
[354621506,1740595973289,-500.0,0.00040766,2]
[354621507,1740595973298,-300.0,0.000408,2]
[354621508,1740595973307,-300.0,0.000408,2]
[354621509,1740595973316,-308.002646,0.00040821,14]
[354621510,1740595973325,-308.002646,0.00040821,14]
[354621511,1740595973335,-308.002646,0.00040821,14]
[354621512,1740595973344,-189.398698,0.00040821,14]
[354621513,1740595973353,-308.002646,0.00040821,14]
[354621514,1740595973362,-189.398698,0.00040821,14]
[354621515,1740595973372,-308.002646,0.00040821,14]
[354621516,1740595973380,-189.398698,0.00040821,14]
[354621517,1740595973389,-308.002646,0.00040821,14]
[354621518,1740595973398,-189.398698,0.00040821,14]
[354621519,1740595973410,-308.002646,0.00040821,14]
[354621520,1740595973419,-189.398698,0.00040821,14]
[354621521,1740595973428,-308.002646,0.00040821,14]
[354621522,1740595973437,-189.398698,0.00040821,14]
[354621523,1740595973446,-189.398698,0.00040821,14]
[354621524,1740595973454,-189.398698,0.00040821,14]
[354621525,1740595973463,-308.002646,0.00040821,14]
[354621526,1740595973472,-308.002646,0.00040821,14]
[354621527,1740595973490,-308.002646,0.00040821,14]
[354621528,1740595973505,-308.002646,0.00040821,14]
[354621529,1740595973524,-308.002646,0.00040821,14]
[354621530,1740595973542,-308.002646,0.00040821,14]
[354621531,1740595973556,-308.002646,0.00040821,14]
[354621532,1740595973574,-308.002651,0.00040821,14]
[354621533,1740595973593,-152.57917,0.00040821,14]
[354621534,1740595973610,-152.57917,0.00040821,14]
[354621535,1740595973629,-152.57917,0.00040821,14]
[354621536,1740595973646,-152.57917,0.00040821,14]
[354621537,1740595973667,-152.57917,0.00040821,14]
[354621538,1740595973682,-152.57917,0.00040821,14]
[354621539,1740595973701,-152.57917,0.00040821,14]
[354621540,1740595973714,-152.57917,0.00040821,14]
[354621541,1740595973731,-152.57917,0.00040821,14]
[354621542,1740595973748,-152.57917,0.00040821,14]
[354621543,1740595973762,-152.57917,0.00040821,14]
[354621544,1740595973778,-152.57917,0.00040821,14]
[354621545,1740595973792,-152.57917,0.00040821,14]
[354621546,1740595973807,-152.57917,0.00040821,14]
[354621547,1740595973824,-152.57917,0.00040821,14]
[354621548,1740595973839,-672.636069,0.00040821,14]
[354621549,1740595973854,-676.71,0.00040821,14]
[354621550,1740595973870,-1501.590989,0.00040821,14]
[354621551,1740595973887,-870.39,0.00040821,14]
[354621552,1740595973906,-814.89,0.00040821,14]
[354621553,1740595973924,-1069.27,0.00040821,14]
[354621554,1740595973941,-1090.2,0.00040821,14]
[354621555,1740595973958,-500.0,0.00040821,14]
[354621556,1740595973976,-1150.39,0.00040821,14]
[354621557,1740595973996,-500.0,0.00040821,14]
[354621558,1740595974016,-701.36,0.00040821,14]
[354621559,1740595974035,-841.82,0.00040821,14]
[354621560,1740595974054,-500.0,0.00040821,14]
[354621561,1740595974071,-670.19,0.00040821,14]
[354621562,1740595974088,-1844.05,0.00040821,14]
[354621563,1740595974103,-747.92,0.00040821,14]
[354621564,1740595974119,-835.83,0.00040821,14]
[354621565,1740595974136,-738.6,0.00040821,14]
[354621566,1740595974155,-1533.87,0.00040821,14]
[354621567,1740595974172,-1414.25,0.00040821,14]
[354621568,1740595974188,-865.08,0.00040821,14]
[354621569,1740595974206,-633.98,0.00040821,14]
[354621570,1740595974223,-600.33,0.00040821,14]
[354621571,1740595974242,-580.36,0.00040821,14]
[354621572,1740595974260,-742.35,0.00040821,14]
[354621573,1740595974277,-732.49,0.00040821,14]
[354621574,1740595974294,-527.1,0.00040821,14]
[354621575,1740595974310,-500.0,0.00040821,14]
[354621576,1740595974325,-935.03,0.00040821,14]
[354621577,1740595974341,-581.31,0.00040821,14]
[354621578,1740595974356,-689.42,0.00040821,14]
[354621579,1740595974370,-689.49,0.00040821,14]
[354621580,1740595974386,-543.41,0.00040821,14]
[354621581,1740595974400,-571.34,0.00040821,14]
[354621582,1740595974416,-696.87,0.00040821,14]
[354621583,1740595974431,-1290.39,0.00040821,14]
[354621584,1740595974447,-546.44,0.00040821,14]
[354621585,1740595974463,-594.86,0.00040821,14]
[354621586,1740595974479,-635.18,0.00040821,14]
[354621587,1740595974493,-858.4,0.00040821,14]
[354621588,1740595974508,-617.43,0.00040821,14]
[354621589,1740595974522,-500.0,0.00040821,14]
[354621590,1740595974536,-665.21,0.00040821,14]
[354621591,1740595974551,-500.0,0.00040821,14]
[354621592,1740595974565,-1850.02,0.00040821,14]
[354621593,1740595974580,-1161.63,0.00040821,14]
[354621594,1740595974594,-1036.04,0.00040821,14]
[354621595,1740595974609,-2240.29,0.00040821,14]
[354621596,1740595974623,-608.93,0.00040821,14]
[354621597,1740595974637,-500.0,0.00040821,14]
[354621598,1740595974652,-2310.8,0.00040821,14]
[354621599,1740595974668,-500.0,0.00040821,14]
[354621600,1740595974683,-1018.81,0.00040821,14]
[354621601,1740595974698,-592.78151325,0.00040821,14]
[354621602,1740595974713,-871.69,0.00040821,14]
[354621603,1740595974730,-1006.27,0.00040821,14]
[354621604,1740595974745,-1116.49,0.00040821,14]
[354621605,1740595974760,-595.91,0.00040821,14]
[354621606,1740595974773,-641.45,0.00040821,14]
[354621607,1740595974789,-772.83,0.00040821,14]
[354621608,1740595974804,-1308.99,0.00040821,14]
[354621609,1740595974818,-872.15,0.00040821,14]
[354621610,1740595974833,-935.7,0.00040821,14]
[354621611,1740595974848,-649.25,0.00040821,14]
[354621612,1740595974862,-1082.33,0.00040821,14]
[354621613,1740595974877,-500.0,0.00040821,14]
[354621614,1740595974891,-513.39,0.00040821,14]
[354621615,1740595974909,-1176.81,0.00040821,14]
[354621616,1740595974924,-1686.11,0.00040821,14]
[354621617,1740595974939,-547.24,0.00040821,14]
[354621618,1740595974954,-538.09,0.00040821,14]
[354621619,1740595974969,-811.61,0.00040821,14]
[354621620,1740595974988,-1804.38,0.00040821,14]
[354621621,1740595975004,-969.08,0.00040821,14]
[354621622,1740595975020,-2234.9,0.00040821,14]
[354621623,1740595975035,-877.13,0.00040821,14]
[354621624,1740595975051,-582.64,0.00040821,14]
[354621625,1740595975068,-500.0,0.00040821,14]
[354621626,1740595975084,-1855.35,0.00040821,14]
[354621627,1740595975098,-500.0,0.00040821,14]
[354621628,1740595975113,-1019.59,0.00040821,14]
[354621629,1740595975129,-2120.11,0.00040821,14]
[354621630,1740595975144,-1021.29,0.00040821,14]
[354621631,1740595975164,-1613.94,0.00040821,14]
[354621632,1740595975180,-572.27,0.00040821,14]
[354621633,1740595975195,-982.48,0.00040821,14]
[354621634,1740595975212,-1105.78,0.00040821,14]
[354621635,1740595975231,-2258.29,0.00040821,14]
[354621636,1740595975248,-500.0,0.00040821,14]
[354621637,1740595975265,-1496.14,0.00040821,14]
[354621638,1740595975282,-1313.98,0.00040821,14]
[354621639,1740595975297,-782.62,0.00040821,14]
[354621640,1740595975313,-633.15,0.00040821,14]
[354621641,1740595975328,-1614.67,0.00040821,14]
[354621642,1740595975344,-777.94,0.00040821,14]
[354621643,1740595975359,-2802.17,0.00040821,120]
[354621644,1740595975374,-1119.74,0.00040821,14]
[354621645,1740595975390,-630.05,0.00040821,14]
[354621646,1740595975407,-500.0,0.00040821,14]
[354621647,1740595975424,-1550.01,0.00040821,14]
[354621648,1740595975439,-898.54,0.00040821,14]
[354621649,1740595975455,-986.29,0.00040821,14]
[354621650,1740595975471,-666.5,0.00040821,14]
[354621651,1740595975487,-1800.45,0.00040821,14]
[354621652,1740595975503,-1038.19,0.00040821,14]
[354621653,1740595975518,-722.35,0.00040821,14]
[354621654,1740595975535,-777.79,0.00040821,14]
[354621655,1740595975553,-583.31,0.00040821,14]
[354621656,1740595975569,-1016.47,0.00040821,14]
[354621657,1740595975583,-746.65,0.00040821,14]
[354621658,1740595975598,-529.67,0.00040821,14]
[354621659,1740595975615,-806.05,0.00040821,14]
[354621660,1740595975632,-886.7,0.00040821,14]
[354621661,1740595975898,-820.28,0.00040821,14]
[354621662,1740595975928,-1501.14,0.00040821,14]
[354621663,1740595975938,-921.34,0.00040821,14]
[354621664,1740595975948,-699.59,0.00040821,14]
[354621665,1740595975958,-1003.76,0.00040821,14]
[354621666,1740595975969,-1495.63,0.00040821,14]
[354621667,1740595975984,-834.44,0.00040821,14]
[354621668,1740595975994,-831.3,0.00040821,14]
[354621669,1740595976004,-675.74,0.00040821,14]
[354621670,1740595976014,-917.03,0.00040821,14]
[354621671,1740595976028,-551.68,0.00040821,14]
[354621672,1740595976038,-681.62,0.00040821,14]
[354621673,1740595976048,-1958.47,0.00040821,14]
[354621674,1740595976059,-1067.6,0.00040821,14]
[354621675,1740595976070,-500.0,0.00040821,14]
[354621676,1740595976079,-636.63,0.00040821,14]
[354621677,1740595976089,-1007.51,0.00040821,14]
[354621678,1740595976099,-826.67,0.00040821,14]
[354621679,1740595976108,-532.65,0.00040821,14]
[354621680,1740595976117,-1255.98,0.00040821,14]
[354621681,1740595976127,-1084.65,0.00040821,14]
[354621682,1740595976137,-510.04,0.00040821,14]
[354621683,1740595976146,-1101.48,0.00040821,14]
[354621684,1740595976159,-634.72,0.00040821,14]
[354621685,1740595976168,-842.79,0.00040821,14]
[354621686,1740595976177,-861.46,0.00040821,14]
[354621687,1740595976187,-410.42713876,0.00040821,14]
[354621688,1740595976197,-765.4,0.00040821,14]
[354621689,1740595976206,-604.9,0.00040821,14]
[354621690,1740595976215,-1116.67,0.00040821,14]
[354621691,1740595976225,-500.0,0.00040821,14]
[354621692,1740595976235,-1441.7,0.00040821,14]
[354621693,1740595976245,-754.28,0.00040821,14]
[354621694,1740595976254,-929.23,0.00040821,14]
[354621695,1740595976264,-718.11,0.00040821,14]
[354621696,1740595976273,-1403.66,0.00040821,14]
[354621697,1740595976282,-1217.5,0.00040821,14]
[354621698,1740595976291,-1107.15,0.00040821,14]
[354621699,1740595976300,-1834.12,0.00040821,14]
[354621700,1740595976311,-902.19,0.00040821,14]
[354621701,1740595976320,-561.55,0.00040821,14]
[354621702,1740595976329,-565.94,0.00040821,14]
[354621703,1740595976338,-1996.52,0.00040821,14]
[354621704,1740595976349,-500.0,0.00040821,14]
[354621705,1740595976359,-563.43,0.00040821,14]
[354621706,1740595976368,-1467.19,0.00040821,14]
[354621707,1740595976378,-1321.18,0.00040821,14]
[354621708,1740595976388,-1902.42,0.00040821,14]
[354621709,1740595976398,-1140.97,0.00040821,14]
[354621710,1740595976411,-528.46,0.00040821,14]
[354621711,1740595976420,-651.71,0.00040821,14]
[354621712,1740595976430,-1073.87,0.00040821,14]
[354621713,1740595976439,-1235.9,0.00040821,14]
[354621714,1740595976449,-583.0,0.00040821,14]
[354621715,1740595976459,-642.59,0.00040821,14]
[354621716,1740595976468,-1162.07,0.00040821,14]
[354621717,1740595976478,-1175.03,0.00040821,14]
[354621718,1740595976487,-500.0,0.00040821,14]
[354621719,1740595976496,-1123.12,0.00040821,14]
[354621720,1740595976506,-1360.38,0.00040821,14]
[354621721,1740595976517,-990.04,0.00040821,14]
[354621722,1740595976529,-758.81,0.00040821,14]
[354621723,1740595976538,-500.0,0.00040821,14]
[354621724,1740595976549,-1858.11,0.00040821,14]
[354621725,1740595976559,-743.78,0.00040821,14]
[354621726,1740595976568,-836.2,0.00040821,14]
[354621727,1740595976577,-552.16,0.00040821,14]
[354621728,1740595976587,-957.01,0.00040821,14]
[354621729,1740595976596,-1949.61,0.00040821,14]
[354621730,1740595976606,-1008.01,0.00040821,14]
[354621731,1740595976615,-1466.22,0.00040821,14]
[354621732,1740595976625,-1152.19,0.00040821,14]
[354621733,1740595976634,-2482.2,0.00040821,14]
[354621734,1740595976645,-1828.52,0.00040821,14]
[354621735,1740595976658,-527.63,0.00040821,14]
[354621736,1740595976668,-873.77,0.00040821,14]
[354621737,1740595976677,-1665.67,0.00040821,14]
[354621738,1740595976687,-500.0,0.00040821,14]
[354621739,1740595976697,-1934.6,0.00040821,14]
[354621740,1740595976706,-786.06,0.00040821,14]
[354621741,1740595976716,-1875.12,0.00040821,14]
[354621742,1740595976726,-1075.72,0.00040821,14]
[354621743,1740595976736,-554.85,0.00040821,14]
[354621744,1740595976745,-956.32,0.00040821,14]
[354621745,1740595976755,-1163.37,0.00040821,14]
[354621746,1740595976765,-500.0,0.00040821,14]
[354621747,1740595976775,-1037.67,0.00040821,14]
[354621748,1740595976785,-2110.11,0.00040821,14]
[354621749,1740595976795,-655.67,0.00040821,14]
[354621750,1740595976804,-519.01,0.00040821,14]
[354621751,1740595976814,-500.0,0.00040821,14]
[354621752,1740595976823,-754.12,0.00040821,14]
[354621753,1740595976833,-1351.39,0.00040821,14]
[354621754,1740595976844,-1595.01,0.00040821,14]
[354621755,1740595976854,-883.23,0.00040821,14]
[354621756,1740595976864,-978.64,0.00040821,14]
[354621757,1740595976874,-544.48,0.00040821,14]
[354621758,1740595976884,-1282.93,0.00040821,14]
[354621759,1740595976894,-564.97155017,0.00040821,14]
[354621760,1740595976917,-1979.65,0.00040821,14]
[354621761,1740595976927,-1465.82,0.00040821,14]
[354621762,1740595976936,-287.02770774,0.00040821,14]
[354621763,1740595976946,-1395.89,0.00040821,14]
[354621764,1740595976956,-854.86,0.00040821,14]
[354621765,1740595976965,-1505.0,0.00040821,14]
[354621766,1740595976977,-924.09,0.00040821,14]
[354621767,1740595976990,-711.08,0.00040821,14]
[354621768,1740595976999,-552.43,0.00040821,14]
[354621769,1740595977009,-895.76,0.00040821,14]
[354621770,1740595977018,-932.59,0.00040821,14]
[354621771,1740595977031,-1558.86,0.00040821,14]
[354621772,1740595977041,-912.19,0.00040821,14]
[354621773,1740595977050,-551.46,0.00040821,14]
[354621774,1740595977060,-3271.55,0.00040821,14]
[354621775,1740595977072,-3117.32,0.00040821,14]
[354621776,1740595977081,-896.05,0.00040821,14]
[354621777,1740595977090,-1469.5,0.00040821,14]